Workbook

Sheet SOLL_IST_ER-Erfassung
A1: IT Kosten | C1: =Budget!B2 -> 2025 | I1: Neueinträge und Budgetänderungen NUR in Tabelle Budget!
F2: Einträg Spalten C und D sind aus Tabelle Budget übernommen, bitte NICHT ändern!
F3: Hier sind nur die ER einzutragen! Einträge Jän - Dez sind änderbar, bitte bei Bedarf bitte auf "0" setzen!
A4: Grundbezeichnung | B4: Investition Aufwendung | C4: ausführliche Bezeichnung | D4: Jahresbudget genehmigt | E4: Budgeterwartung | F4: Jän | G4: Feb | H4: Mär | I4: Apr | J4: Mai | K4: Jun | L4: Jul | M4: Aug | N4: Sep | O4: Okt | P4: Nov | Q4: Dez | R4: 2026 | S4: 2027
A5: =IF(Budget!A6<>0,Budget!A6,"") -> Betrieb | C5: =IF(Budget!B6<>0,Budget!B6,"") -> Test | D5: =VLOOKUP(t_SOLL[[#This Row],[ausführliche Bezeichnung]],Budget!B:D,2,) -> 27500 | E5: =SUM(t_SOLL[[#This Row],[Jän]:[Dez]]) -> 27500 | F5: =VLOOKUP(t_SOLL[[#This Row],[ausführliche Bezeichnung]],Budget!$B:$P,4,) -> 2291.666667 | G5: =VLOOKUP(t_SOLL[[#This Row],[ausführliche Bezeichnung]],Budget!$B:$P,5,) -> 2291.666667 | H5: =VLOOKUP(t_SOLL[[#This Row],[ausführliche Bezeichnung]],Budget!$B:$P,6,) -> 2291.666667 | I5: =VLOOKUP(t_SOLL[[#This Row],[ausführliche Bezeichnung]],Budget!$B:$P,7,) -> 2291.666667 | J5: =VLOOKUP(t_SOLL[[#This Row],[ausführliche Bezeichnung]],Budget!$B:$P,8,) -> 2291.666667 | K5: =VLOOKUP(t_SOLL[[#This Row],[ausführliche Bezeichnung]],Budget!$B:$P,9,) -> 2291.666667 | L5: =VLOOKUP(t_SOLL[[#This Row],[ausführliche Bezeichnung]],Budget!$B:$P,10,) -> 2291.666667 | M5: =VLOOKUP(t_SOLL[[#This Row],[ausführliche Bezeichnung]],Budget!$B:$P,11,) -> 2291.666667 | N5: =VLOOKUP(t_SOLL[[#This Row],[ausführliche Bezeichnung]],Budget!$B:$P,12,) -> 2291.666667 | O5: =VLOOKUP(t_SOLL[[#This Row],[ausführliche Bezeichnung]],Budget!$B:$P,13,) -> 2291.666667 | P5: =VLOOKUP(t_SOLL[[#This Row],[ausführliche Bezeichnung]],Budget!$B:$P,14,) -> 2291.666667 | Q5: =VLOOKUP(t_SOLL[[#This Row],[ausführliche Bezeichnung]],Budget!$B:$P,15,) -> 2291.666667
A6: =IF(Budget!A7<>0,Budget!A7,"") -> Kanzlei | B6: a | C6: =IF(Budget!B7<>0,Budget!B7,"") -> Papier | D6: =VLOOKUP(t_SOLL[[#This Row],[ausführliche Bezeichnung]],Budget!B:D,2,) -> 90000 | E6: =SUM(t_SOLL[[#This Row],[Jän]:[Dez]]) -> 83400 | F6: =500+400 -> 900 | G6: =VLOOKUP(t_SOLL[[#This Row],[Jahresbudget genehmigt]],Budget!C:Q,5,) -> 7500 | H6: =VLOOKUP(t_SOLL[[#This Row],[ausführliche Bezeichnung]],Budget!$B:$P,6,) -> 7500 | I6: =VLOOKUP(t_SOLL[[#This Row],[ausführliche Bezeichnung]],Budget!$B:$P,7,) -> 7500 | J6: =VLOOKUP(t_SOLL[[#This Row],[ausführliche Bezeichnung]],Budget!$B:$P,8,) -> 7500 | K6: =VLOOKUP(t_SOLL[[#This Row],[ausführliche Bezeichnung]],Budget!$B:$P,9,) -> 7500 | L6: =VLOOKUP(t_SOLL[[#This Row],[ausführliche Bezeichnung]],Budget!$B:$P,10,) -> 7500 | M6: =VLOOKUP(t_SOLL[[#This Row],[ausführliche Bezeichnung]],Budget!$B:$P,11,) -> 7500 | N6: =VLOOKUP(t_SOLL[[#This Row],[ausführliche Bezeichnung]],Budget!$B:$P,12,) -> 7500 | O6: =VLOOKUP(t_SOLL[[#This Row],[ausführliche Bezeichnung]],Budget!$B:$P,13,) -> 7500 | P6: =VLOOKUP(t_SOLL[[#This Row],[ausführliche Bezeichnung]],Budget!$B:$P,14,) -> 7500 | Q6: =VLOOKUP(t_SOLL[[#This Row],[ausführliche Bezeichnung]],Budget!$B:$P,15,) -> 7500
A7: =IF(Budget!A8<>0,Budget!A8,"") -> OP | B7: i | C7: =IF(Budget!B8<>0,Budget!B8,"") -> Diverse | D7: =VLOOKUP(t_SOLL[[#This Row],[ausführliche Bezeichnung]],Budget!B:D,2,) -> 25000 | E7: =SUM(t_SOLL[[#This Row],[Jän]:[Dez]]) -> 25300 | F7: =200+100 -> 300 | G7: =VLOOKUP(t_SOLL[[#This Row],[Jahresbudget genehmigt]],Budget!C:Q,5,) -> 0 | H7: =VLOOKUP(t_SOLL[[#This Row],[ausführliche Bezeichnung]],Budget!$B:$P,6,) -> 0 | I7: =VLOOKUP(t_SOLL[[#This Row],[ausführliche Bezeichnung]],Budget!$B:$P,7,) -> 0 | J7: =VLOOKUP(t_SOLL[[#This Row],[ausführliche Bezeichnung]],Budget!$B:$P,8,) -> 25000 | K7: =VLOOKUP(t_SOLL[[#This Row],[ausführliche Bezeichnung]],Budget!$B:$P,9,) -> 0 | L7: =VLOOKUP(t_SOLL[[#This Row],[ausführliche Bezeichnung]],Budget!$B:$P,10,) -> 0 | M7: =VLOOKUP(t_SOLL[[#This Row],[ausführliche Bezeichnung]],Budget!$B:$P,11,) -> 0 | N7: =VLOOKUP(t_SOLL[[#This Row],[ausführliche Bezeichnung]],Budget!$B:$P,12,) -> 0 | O7: =VLOOKUP(t_SOLL[[#This Row],[ausführliche Bezeichnung]],Budget!$B:$P,13,) -> 0 | P7: =VLOOKUP(t_SOLL[[#This Row],[ausführliche Bezeichnung]],Budget!$B:$P,14,) -> 0 | Q7: =VLOOKUP(t_SOLL[[#This Row],[ausführliche Bezeichnung]],Budget!$B:$P,15,) -> 0

Sheet Budget
A1: Budgetplanung | E1: Neueinträge nur in dieser Tabelle bitte Button Aktualiseren in Tabelle SOLL_IST_Ausw_Piv nicht vergessen
A2: xxx | B2: 2025 | E2: Button Aktualisieren in Tabellenblatt "SOLL_IST_Ausw_Piv" nicht vergessen!
E3: Manuelle Änderung
C4: Bei Bedarf ändern | E4: Budget und Monate sind manuell zu befüllen, bei Bedarf ändern
A5: Grundbezeichnung | B5: ausführliche Bezeichnung | C5: Jahresbudget -bewilligt manuell zu befüllen nicht ändern | D5: Budget Erwartung Jän - Dez | E5: Jän | F5: Feb | G5: Mär | H5: Apr | I5: Mai | J5: Jun | K5: Jul | L5: Aug | M5: Sep | N5: Okt | O5: Nov | P5: Dez | Q5: =B2+1 -> 2026 | R5: 2027
A6: Betrieb | B6: Test | C6: 27500 | D6: =SUM(t_Budget[[#This Row],[Jän]:[Dez]]) -> 27500 | E6: =27500/12 -> 2291.666667 | F6: =27500/12 -> 2291.666667 | G6: 2291.666667 | H6: 2291.666667 | I6: 2291.666667 | J6: 2291.666667 | K6: 2291.666667 | L6: 2291.666667 | M6: 2291.666667 | N6: 2291.666667 | O6: 2291.666667 | P6: 2291.666667
A7: Kanzlei | B7: Papier | C7: 90000 | D7: =SUM(t_Budget[[#This Row],[Jän]:[Dez]]) -> 90000 | E7: =90000/12 -> 7500 | F7: =90000/12 -> 7500 | G7: 7500 | H7: 7500 | I7: 7500 | J7: 7500 | K7: 7500 | L7: 7500 | M7: 7500 | N7: 7500 | O7: 7500 | P7: 7500
A8: OP | B8: Diverse | C8: 25000 | D8: =SUM(t_Budget[[#This Row],[Jän]:[Dez]]) -> 25000 | I8: 25000
